Cogmind - Beta 15 @@@ ROGUE MODE // 2025.09.04 @ 08:58:45 Player: Rock Tank Result: Destroyed by DAS Turret with DAS Cannon Performance ------------- Evolutions (0) 0 Regions Visited (3) 600 Robots Destroyed (30) 150 Value Destroyed (575) 575 Prototype IDs (37) 740 Alien Tech Used (0) 0 Bonus (-345) -345 TOTAL SCORE: 1720 Bonus ------- Aligned with FarCom 300 Friendly Fire -645 Cogmind --------- Core Integrity 0/250 Matter 237/300 Energy 99/100 System Corruption 0% Temperature Cool (0) Movement Rolling (145) Ox3 Location -10/Exiles Parts ------- > --- POWER (1) -------- (None) > --- PROPULSION (2) --- Compact Wheel > --- UTILITY (2) ------ High-capacity Storage Unit Sensor Array > --- WEAPON (2) ------- YOLO Cannon > --- INVENTORY (20) --- Ion Engine Light Treads Light Treads Light Treads Light Treads Light Treads Light Treads High-capacity Battery (250) Large Matter Pod (94) Sensor Array Light Armor Plating Medium Laser Beam Cannon Assault Rifle AWS/Autocannon Grenade Launcher Grenade Launcher Datajack Peak State ------------ > --- POWER ------------ Ion Engine > --- PROPULSION ------- Compact Wheel Compact Wheel > --- UTILITY ---------- High-capacity Storage Unit Sensor Array > --- WEAPON ----------- YOLO Cannon > --- INVENTORY -------- Ion Engine Light Treads Light Treads Light Treads Light Treads Light Treads Light Treads High-capacity Battery Large Matter Pod Sensor Array Light Armor Plating Medium Laser Beam Cannon Assault Rifle AWS/Autocannon Grenade Launcher Grenade Launcher Datajack [Rating: 29] Favorites ----------- Power Ion Engine Engine Ion Engine Propulsion Light Treads Treads Light Treads Wheel Compact Wheel Utility High-capacity Storage Unit Device Sensor Array Storage High-capacity Storage Unit Weapon Assault Rifle Energy Gun Medium Laser Energy Cannon YOLO Cannon Ballistic Gun Assault Rifle Launcher Grenade Launcher Special Melee Weapon Datajack Build | -11 -10 -10 -10 ------- Run | Yrd Mat Min Exi Slots Evolved . | . . . . Power . | . . . . Propulsion . | . . . . Utility . | . . . . Weapon . | . . . . Parts Attached 21 | 5 12 1 3 Power 2 | . 2 . . Engine 2 | . 2 . . Core . | . . . . Reactor . | . . . . Propulsion 6 | 2 3 . 1 Treads 4 | 1 3 . . Leg . | . . . . Wheel 2 | 1 . . 1 Hover . | . . . . Flight . | . . . . Utility 4 | 1 3 . . Device 1 | . 1 . . Storage 3 | 1 2 . . Processor . | . . . . Hackware . | . . . . Protection . | . . . . Artifact . | . . . . Weapon 9 | 2 4 1 2 Energy Gun 1 | . . 1 . Energy Cannon 1 | . . . 1 Ballistic Gun 5 | 2 3 . . Ballistic Cannon . | . . . . Launcher 1 | . 1 . . Special Weapon . | . . . . Impact Weapon . | . . . . Slashing Weapon . | . . . . Piercing Weapon . | . . . . Special Melee Weapon 1 | . . . 1 Unidentified Prototypes . | . . . . Parts Lost 2 | . . . 2 Power 1 | . . . 1 Propulsion 1 | . . . 1 Utility . | . . . . Weapon . | . . . . Highest Loss Streak 2 | . . . 2 To Critical Strikes . | . . . . Average Backups 16 | 3 16 18 16 Power 1 | 1 2 1 1 Propulsion 5 | 2 4 6 6 Utility 3 | . 2 4 4 Weapon 6 | . 6 5 5 Tool/Special . | . . . . Unused Backups 23 | . 7 3 13 Power 3 | . 2 . 1 Propulsion 6 | . 3 . 3 Utility 6 | . . 2 4 Weapon 8 | . 2 1 5 Tool/Special . | . . . . Average Slot Usage (%) 95 | . 91 100 99 Engine 13 | . 13 14 14 Treads 15 | . 16 14 13 Wheel 12 | . 11 14 14 Device 9 | . 5 14 14 Storage 14 | . 15 14 14 Energy Gun 4 | . . 8 13 Ballistic Gun 21 | . 27 19 1 Special Melee Weapon 1 | . . . 12 Peak Build Rating 29 | 5 9 9 29 Average Rating 8 | 3 7 8 10 On Entrance 5 | . 5 9 9 Naked Turns . | . . . . Heaviest Build 59 | 8 50 51 59 Greatest Support 40 | 20 40 16 32 Greatest Overweight (x) 3 | . 3 3 3 Average Overweight (x) 2 | . 2 3 2 Largest Inventory Capacity 20 | 8 20 20 20 Average Capacity 18 | 6 18 20 20 Most Carried 20 | 7 20 20 20 Average Carried 17 | 3 16 19 19 Final Capacity 20 | 8 20 20 20 Final Carried 20 | 7 20 20 20 Class Distribution -------------------- 100% | Mutant Dominant Class ---------------- Mutant | -10/Materials Mutant | -10/Mines Mutant | -10/Exiles Resources | -11 -10 -10 -10 ----------- Run | Yrd Mat Min Exi Matter Collected 1197 | 242 727 228 . Remotely . | . . . . Salvage Created 982 | . 799 183 . Parts 53 | . 44 9 . Haulers Intercepted 2 | . 2 . . Recyclers Shooed 3 | . 1 2 . Parts Field Recycled . | . . . . Retrieved Matter . | . . . . Parts Self-Destructed . | . . . . Prevented . | . . . . Kills | -11 -10 -10 -10 ------- Run | Yrd Mat Min Exi Combat Hostiles Destroyed 16 | . 14 2 . Guns 11 | . 11 . . AOE 5 | . 3 2 . Classes Destroyed 9 | . 8 1 . Worker 1 | . . 1 . Tunneler 1 | . 1 . . Hauler 2 | . 2 . . Recycler 4 | . 3 1 . Mechanic 1 | . 1 . . Operator 2 | . 2 . . Watcher 3 | . 3 . . Swarmer 6 | . 6 . . Grunt 10 | . 8 2 . Best Kill Streak 4 | . 4 2 . Combat Bots Only 3 | . 3 2 . Max Kills in Single Turn 2 | . 2 1 . Gunslinging . | . . . . Exploded 2 | . 2 1 . Melee . | . . . . Uniques/NPCs Destroyed . | . . . . Combat | -11 -10 -10 -10 -------- Run | Yrd Mat Min Exi Hostile Shots Fired 77 | . 59 6 12 Missed 17 | . 14 3 . Hits 60 | . 45 3 12 Projectile 60 | . 45 3 12 Damage Taken 1023 | . 514 72 437 Core 258 | . 59 24 175 Absorbed by Shields . | . . . . Regen/Repaired (Parts) 191 | . 191 . . Core Remaining (%) 100 | 100 . . . Volleys Fired 108 | 2 80 24 2 Largest 2 | 2 2 2 1 Hottest 100 | 40 50 70 100 Shots Fired 198 | 4 154 38 2 Gun 179 | 4 147 28 . Cannon 2 | . . . 2 Launcher 17 | . 7 10 . Special . | . . . . Kinetic 174 | 4 147 23 . Thermal 7 | . . 5 2 Explosive 17 | . 7 10 . Electromagnetic . | . . . . Robot Hit Streak 9 | 2 9 8 3 Robot Miss Streak 3 | 2 3 2 1 Penetration Max . | . . . . Secondary Targets . | . . . . Shots Hit Robots 126 | 2 96 23 5 Core Hits 55 | . 48 7 . Critical Kills . | . . . . Critical Parts Destroyed . | . . . . Critical Strikes . | . . . . Melee Attacks 4 | . . . 4 Impact . | . . . . Slashing . | . . . . Piercing . | . . . . Sneak Attacks 4 | . . . 4 Combat Hostiles . | . . . . Follow-up Attacks . | . . . . Damage Inflicted 2312 | 21 1533 422 336 Guns 1382 | 21 1110 251 . Cannons 134 | . . . 134 Explosions 796 | . 423 171 202 Melee . | . . . . Ramming . | . . . . Kinetic 1333 | 21 1110 202 . Thermal 385 | . . 49 336 Explosive 594 | . 423 171 . Electromagnetic . | . . . . Impact . | . . . . Slashing . | . . . . Piercing . | . . . . Highest Corruption . | . . . . Average Corruption . | . . . . Corruption Purged . | . . . . Corruption Blocked . | . . . . Overload Shots . | . . . . Overflow Damage 91 | . 71 6 14 Projectiles 14 | . . . 14 Explosions 77 | . 71 6 . Melee . | . . . . Knockbacks . | . . . . Impact . | . . . . Kinetic . | . . . . Secondary . | . . . . Self-Inflicted Damage 61 | . 26 35 . Shots 4 | . 2 2 . Rammed . | . . . . Targets Rammed . | . . . . Kicked . | . . . . Crushed . | . . . . Highest Temperature 27 | . 12 27 20 Average Temperature 10 | . 6 11 16 Received Heat Transfer 231 | . 210 21 . Siege Activations . | . . . . Martial Activations . | . . . . Shielding Activations . | . . . . Robots Disrupted . | . . . . Combat Hostiles . | . . . . Robots Corrupted . | . . . . Combat Hostiles . | . . . . Parts Fried . | . . . . Impact Corruptions . | . . . . Robots Melted . | . . . . Combat Hostiles . | . . . . Parts Melted . | . . . . Heat Transferred 468 | . . 148 320 Parts Sabotaged . | . . . . Parts Stolen . | . . . . Parts Stripped . | . . . . Power Chain Reactions . | . . . . Alert | -11 -10 -10 -10 ------- Run | Yrd Mat Min Exi Maximum Alert Level . | . . . . Low Security (%) 100 | 100 100 100 . Level 1 . | . . . . Level 2 . | . . . . Level 3 . | . . . . Level 4 . | . . . . Level 5 . | . . . . High Security . | . . . . Max Security . | . . . . Peak Influence 111 | . 111 78 . Initial 22 | . . 22 . Average 26 | . 41 5 . Influence Increases 702 | . 581 121 . Destroy 0b10 Robot/C 320 | . 280 40 . Destroy 0b10 Robot/NC 70 | . 60 10 . Destroy Leader 70 | . 60 10 . Successful Hack 35 | . 35 . . Select Force Hacks 60 | . 60 . . Disable Machine 30 | . 15 15 . Destroy Structure 87 | . 41 46 . Lose Combat Pursuer 30 | . 30 . . Influence Decreases 702 | . 523 113 66 Entered New Map 102 | . . 36 66 Time Decay 557 | . 480 77 . Purge Threat 43 | . 43 . . Squads Dispatched 3 | . 3 . . Investigation 2 | . 2 . . Extermination . | . . . . Reinforcement 1 | . 1 . . Assault . | . . . . Garrison . | . . . . Intercept . | . . . . Searches Triggered . | . . . . Construction Impeded . | . . . . Haulers Reinforced . | . . . . Active Scanning Responses . | . . . . Cargo Convoy Interrupts . | . . . . Stealth | -11 -10 -10 -10 --------- Run | Yrd Mat Min Exi Distress Signals 2 | . 2 . . Communications Jammed . | . . . . Distress Signals . | . . . . Times Spotted 30 | . 26 2 2 Peak Tracking Total 12 | . 4 2 12 Tactical Retreats 2 | . 2 . . Traps | -11 -10 -10 -10 ------- Run | Yrd Mat Min Exi Traps Triggered 2 | . 2 . . Indirectly . | . . . . Trap Hack Attempts . | . . . . Triggered . | . . . . Disarmed . | . . . . Reprogrammed . | . . . . Reused . | . . . . Traps Extracted . | . . . . Installed . | . . . . Triggered . | . . . . Most Traps Carried 3 | . . 3 3 Machines | -11 -10 -10 -10 ---------- Run | Yrd Mat Min Exi Machines Disabled 5 | . 2 1 2 Max in Single Turn 1 | . 1 1 1 Machines Repaired . | . . . . Machines Dismantled . | . . . . Machines Sabotaged . | . . . . Overloaded Fab Kills . | . . . . Hacking | -11 -10 -10 -10 --------- Run | Yrd Mat Min Exi Machines Accessed 11 | . 9 . 2 Terminals 6 | . 6 . . Fabricators . | . . . . Repair Stations 1 | . 1 . . Recycling Units 2 | . 2 . . Scanalyzers . | . . . . Garrison Access . | . . . . Total Hacks 43 | . 33 . 10 Successful 32 | . 22 . 10 Failed 10 | . 10 . . Catastrophic . | . . . . Database Lockouts 1 | . 1 . . Manual 30 | . 29 . 1 Terminals 26 | . 26 . . Fabricators . | . . . . Repair Stations 4 | . 4 . . Recycling Units 3 | . 3 . . Scanalyzers . | . . . . Garrison Access . | . . . . Terminal Hacks 14 | . 4 . 10 Record 9 | . . . 9 Robot Analysis 2 | . 2 . . Terminal Index 1 | . 1 . . Unreport Threat 1 | . 1 . . Proto ID Catalog 1 | . . . 1 Fabricator Hacks . | . . . . Repair Station Hacks 4 | . 4 . . Scan Component 2 | . 2 . . Repair 2 | . 2 . . Recycling Unit Hacks . | . . . . Scanalyzer . | . . . . Garrison Access Hacks . | . . . . Unauthorized Hacks 14 | . 14 . . Terminals 12 | . 12 . . Track 1 | . 1 . . Assimilate 2 | . 2 . . Botnet 3 | . 3 . . Operators 1 | . 1 . . Skim 5 | . 5 . . Fabricators . | . . . . Repair Stations . | . . . . Recycling Units 2 | . 2 . . Tunnel 2 | . 2 . . Scanalyzers . | . . . . Garrison Access . | . . . . Data Cores Recovered . | . . . . Used . | . . . . Hacking Detections 7 | . 7 . . Full Trace Events . | . . . . Feedback Events . | . . . . Feedback Blocked . | . . . . Robot Schematics Acquired . | . . . . Robots Built . | . . . . Authchips . | . . . . Time . | . . . . Total Robot Build Rating . | . . . . Part Schematics Acquired . | . . . . Parts Built . | . . . . Authchips . | . . . . Time . | . . . . Total Part Build Rating . | . . . . Parts Repaired 2 | . 2 . . Time 52 | . 52 . . Parts Recycled . | . . . . Recycled Matter . | . . . . Retrieved Matter . | . . . . Retrieved Components . | . . . . Parts Scanalyzed . | . . . . Part Schematics Acquired . | . . . . Parts Damaged . | . . . . Bothacking | -11 -10 -10 -10 ------------ Run | Yrd Mat Min Exi Used RIF Installer . | . . . . Robots Hacked 4 | . . . 4 Non-combat 3 | . . . 3 Combat 1 | . . . 1 Robot Hacks Applied 4 | . . . 4 parse_system 4 | . . . 4 Relay Couplers Released . | . . . . Fabnet Peak Effective % . | . . . . Robots Rewired . | . . . . Allies Hacked . | . . . . Hacks Repelled . | . . . . Allies | -11 -10 -10 -10 -------- Run | Yrd Mat Min Exi Total Allies . | . . . . Largest Group . | . . . . Highest-Rated Group . | . . . . Highest-Rated Ally . | . . . . Total Orders . | . . . . Ally Attacks . | . . . . Total Damage . | . . . . Kills . | . . . . Allies Corrupted . | . . . . Allies Melted . | . . . . Intel | -11 -10 -10 -10 ------- Run | Yrd Mat Min Exi Active Infowar (turns) 1948 | . 577 997 374 Sensors 1948 | . 577 997 374 Robot Analysis Total 2 | . 2 . . Derelict Logs Recovered 1 | . . 1 . Drone Launches . | . . . . Drone Recoveries . | . . . . Exploration | -11 -10 -10 -10 ------------- Run | Yrd Mat Min Exi Turns Passed 2987 | 63 1553 997 374 Spaces Moved 1704 | 42 793 632 237 Core 3 | 3 . . . Treads 82 | 4 78 . . Legs . | . . . . Wheels 1619 | 35 715 632 237 Hover . | . . . . Flight . | . . . . Fastest Speed 50 | 50 100 145 115 Average Speed 145 | 102 148 145 144 Slowest Speed 240 | 160 240 145 145 Overloaded Moves . | . . . . Propulsion Burnouts . | . . . . Robots Hopped . | . . . . Potential Cave-ins 2 | . . 2 . Cave-ins Triggered . | . . . . Exploration Rate (%) 61 | 4 99 90 53 Regions Visited 3 Branch Regions 2 Pre-discovered Areas 4 | . 2 2 . Known Exits Taken . | . . . . Unknown Exits Taken 3 | 1 1 1 . Scrap Searched 1 | . . 1 . Spaces Dug 49 | . 22 27 . Terrain Destroyed 119 | . 38 73 8 Melee . | . . . . Projectile . | . . . . AOE 119 | . 38 73 8 Terrain Rammed . | . . . . Walls Destroyed . | . . . . Machines Disabled . | . . . . Actions | -11 -10 -10 -10 --------- Run | Yrd Mat Min Exi Total 2017 | 57 1022 674 264 Wait 91 | . 83 2 6 Move 1701 | 41 792 631 237 Hop . | . . . . Pick Up 45 | 9 28 5 3 Fast Attach 8 | 3 4 . 1 Attach 5 | 2 3 . . Detach 3 | . 1 . 2 Swap 24 | . 15 7 2 Drop 28 | . 16 5 7 Fire 108 | 2 80 24 2 Melee 4 | . . . 4 Ram . | . . . . Kick . | . . . . Crush . | . . . . Escape Stasis . | . . . . Rewire . | . . . . Trap . | . . . . Miscellaneous . | . . . . Route ------- -11/Scrapyard -10/Materials (discovered 5 exits: *Mat x3 / [*Min] / *Sub) -10/Mines (discovered 4 exits: Mat x2 / *Exi / Sub) -10/Exiles (discovered 2 exits: Min x2) History --------- Turn | Location | Event 27 | -11/Scrapyard | Discovered new exit (range 16) 64 | -11/Scrapyard | Entered Materials 327 | -10/Materials | Build established: Mutant 469 | -10/Materials | Discovered new exit (range 9) 473 | -10/Materials | Discovered new exit (range 5) 593 | -10/Materials | Discovered new exit (range 7) 767 | -10/Materials | Central database locked down 876 | -10/Materials | Discovered new exit (range 16) 927 | -10/Materials | Discovered new exit (range 13) 1452 | -10/Materials | Repaired Lgt. Treads 1479 | -10/Materials | Repaired Lgt. Treads 1585 | -10/Materials | Learned 2 Storage zone layouts 1617 | -10/Materials | Entered Mines 1618 | -10/Mines | Identified exit to Materials 1618 | -10/Mines | Identified exit to Subcaves 1684 | -10/Mines | Learned location of Storage (-9) 1700 | -10/Mines | Deemed a non-threat by the Exiles lab entrance 2006 | -10/Mines | Found a hidden stash of uninstalled traps 2609 | -10/Mines | Discovered new exit (range 5) 2614 | -10/Mines | Entered Exiles 2615 | -10/Exiles | Identified exit to Mines 2649 | -10/Exiles | Met 8R-AWN 2680 | -10/Exiles | Met EX-HEX 2722 | -10/Exiles | Met EX-BIN 2806 | -10/Exiles | Aligned with FarCom system 2808 | -10/Exiles | Given EX-Vault access code 2841 | -10/Exiles | Opened EX-Vault 2852 | -10/Exiles | Found YOLO Cannon 2869 | -10/Exiles | Found AWS/Autocannon 2896 | -10/Exiles | Warned to stay clear of 0b10 Research branches 2939 | -10/Exiles | Met EX-DEC 2977 | -10/Exiles | Attacked by the Exiles 2981 | -10/Exiles | Core integrity fell below 50% 2985 | -10/Exiles | Core integrity fell below 20% 2988 | -10/Exiles | Destroyed by DAS Turret with DAS Cannon Last Messages --------------- VM-01H(z): I was there on that fateful day we tested the Lightpack 1.0. It was such a good haul, too, only to see JA-CK9 crushed like a forgotten microchip... 02973_ Dropped YOLO Cannon. 02974_ Acquired YOLO Cannon. 02976_ Destroyed Hvy. Deuterium Engine. 02976_ Machine disabled. 02977_ EXILES: Hostile robot within lab perimeter. Defensive protocols time, folks! 02979_ EX-DEC: "Let's see what this bad boy can do..." 02979_ EX-DEC deploys DAS Turret. 02979_ Knocked back. 02980_ Machine disabled. 02980_ Ion Engine destroyed. 02982_ Com. Wheel destroyed. 02982_ Knocked back. 02987_ EX-BIN: "I just want to science!" [Achievement: This Is Interesting...] Map ----- +----------------------------------------------------+ | ???????????????????????????????????#""X" # | | ???????????????????????????????????#" # | | ???????????????????????????????????#" ## # | | ???????????????????????????????????#""""""?# # | | ???????????????????????????????????##"###??# # | | ???????????????????????????????????????????# # | | ???????????????????????????????????????????# # | | ??????????????????????????????????????????## # | | ??????????????????????????????????????????#" | | ??????????????????????????????????????????#" | | ??????????????????????????????????????????#" | | ??????????????????????????????????????????#" | | ??????????????????????????????????????????#" | | ??????????????????????????????????????????#" | | ?????????????????????????????? ""?????????## | | ?????????????????????????????" ??????????# | | ????????????????????????????"" ?????????#" | | ????????????????????????????"" ??????????#" | | ???????????????????????????? ""?????????#" | | ???????????? ??#????????????" "?????????##" # | | ???????????? #???????????# #????????##"" # | | ????????????" #####????### ###?######"" # | | ????????????" """#####X# #"###""""""" # | | ???????????#" % """""" " "" | | ?????????????# "" """ " | | ??????????????# @ " " | | ????????????????# % | | ????????????????### % | | ??????????????????## c | | ???????????????????## | | ????????????????????##" % % | | ?????????????????????#""" """""" | | ????????????????????##" ######""" | | ????????????????????#"" ""##????##### | | ???????????????????#" """##?????????# | | ??????????????????#" """##??????????? | | ??????????????????#" ""#???????????? | | ??????????????????#" ##???????????? | | ??????????????????#" t #??????????? | | ??????????????????#" ?????????? | | ??????????????????##" ????????? | | ???????????????????## ???????? | | ????????????????????#" ????????? | | ?????????????????????# ????????? | | ?????????????????????#"""" ??????????? | | ??????????????????????"" ???????????? | | ??????????????????????" "????????????? | | ????????????????????????" ??????????????? | | ????????????????????????? ???????????????? | | ?????????????????????????? ?????????????????? | +----------------------------------------------------+ Best States ------------- Heat Dissipation 25 Energy Generation 10 Energy Capacity 250 Matter Stores 300 Matter Capacity 300 Sight Range 16 Robot Scan Range 14 Terrain Scan Density 10 Evasion (%) 40 Recoil Reduction 2 Item Schematics ----------------- None Robot Schematics ------------------ None Fabricated ------------ Nothing Repaired ---------- Lgt. Treads | 11% | -10/Materials Lgt. Treads | 52% | -10/Materials Alien Tech Used ----------------- None Achievements -------------- This Is Interesting... Challenges ------------ None Game ------ Seed BurstCoordinationCleaver Manual? 0 Play Time 00:22:01 Cumulative 42.9 hours Start 2025.09.04 @ 08:39:27 End 2025.09.04 @ 08:58:45 Sessions 1 Manual Loads 0 Difficulty Rogue Special Mode None Game No. 5 Rogue 2 Adventurer 3 Explorer 0 Win Type - Total 2 Types 1/1/0/0/0/0/0/0/0/0 Lore% 25 Gallery% 37 Achievement% 46 Wizard Run 0 Options --------- Layout 0 ASCII 0 Keyboard 0 Movement Mouse Keybinds 0 Fullscreen 2 Font 20/SmallcapsGlow Map View 50x50 Zoom Use 38% Tactical HUD 1 Map Filters NONE Filters NONE Steam 1 RUN: 4f8e43ce-0f86-450f-ae51-821f3cdeb78c